Workbook

Sheet Foglio1
A4: CLASSIFICA ASSOLUTA INDIVIDUALE FEMMINILE MASCHILE XXXIII CIRCUITO MASTER OLD STARS 2019
B9: FEMMINILE DAME C5 | C9: Anno | D9: Società | E9: Temù | F9: S.Cat.SG | G9: S.Cat.G. | H9: S.Cat.S | I9: Comb. | J9: Spiazzi | K9: ApricaG | L9: ApricaG | M9: ApricaS | N9: Comb. | O9: Lizzola | P9: Chiesa | Q9: Chiesa | R9: Comb. | S9: Temu' | T9: TonaleG | U9: TonaleG. | V9: Temu'SG | W9: Comb. | X9: Bonus | Y9: Totale | Z9: Class.
B10: dal 1948 e precedenti
B11: CROTTI CATERINA | C11: 1947 | D11: S.C.Cernobbio | E11: 80 | F11: 100 | G11: 100 | H11: 80 | I11: 80 | K11: 100 | L11: 100 | M11: 100 | N11: 100 | P11: 80 | Q11: 80 | R11: 80 | S11: 80 | T11: 100 | U11: 100 | V11: 100 | W11: 100 | X11: 30 | Y11: =SUM(E11:X11) -> 1590 | Z11: 1 | IV11: =SUM(A11:IU11) -> 5128
B12: MONTINI SILVIA | C12: 1047 | D12: S.C.Cernobbio | E12: 60 | F12: 60 | G12: 60 | H12: 60 | I12: 60 | J12: 80 | K12: 80 | L12: 80 | M12: 45 | N12: 60 | O12: 100 | P12: 50 | Q12: 50 | R12: 50 | S12: 60 | T12: 80 | U12: 80 | V12: 60 | W12: 80 | X12: 60 | Y12: 1315 | Z12: 2
B13: CONSONNI MARILU' | C13: 1948 | D13: S.C.Cernobbio | E13: 50 | F13: 50 | G13: 50 | H13: 50 | I13: 50 | J13: 50 | K13: 60 | L13: 50 | M13: 50 | N13: 50 | O13: 60 | P13: 60 | Q13: 60 | R13: 60 | S13: 50 | T13: 60 | U13: 50 | V13: 80 | W13: 60 | X13: 60 | Y13: 1110 | Z13: 3
B14: FABRETTO ANNA | C14: 1941 | D14: S.C.Marinelli | E14: 100 | F14: 80 | G14: 80 | H14: 100 | I14: 100 | J14: 100 | P14: 100 | Q14: 100 | R14: 100 | S14: 100 | X14: 10 | Y14: 970 | Z14: 4
B15: MAGLIA MARIKA | C15: 1947 | D15: S.C.Cernobbio | E15: 40 | F15: 1 | G15: 45 | H15: 45 | I15: 45 | K15: 45 | L15: 40 | M15: 60 | N15: 45 | O15: 50 | P15: 45 | Q15: 45 | R15: 45 | S15: 40 | T15: 45 | U15: 45 | V15: 45 | W15: 45 | X15: 30 | Y15: 801 | Z15: 5
B16: PEZZOTTA LUCIANA | C16: 1942 | D16: S.C.La Recastello | E16: 45 | J16: 60 | K16: 50 | L16: 60 | M16: 80 | N16: 80 | O16: 80 | S16: 45 | T16: 50 | U16: 60 | V16: 50 | W16: 50 | X16: 30 | Y16: 740 | Z16: 6
B17: MARTINELLI ELENA | C17: 1939 | D17: S.C.La Recastello | J17: 45 | K17: 40 | L17: 45 | M17: 40 | N17: 40 | Y17: 210 | Z17: 7
B19: FEMMINILE DAME C4 | C19: Anno | D19: Società | E19: Temù | F19: S.Cat.SG | G19: S.Cat.G. | H19: S.Cat.S | I19: Comb. | J19: Spiazzi | K19: ApricaG | L19: ApricaG | M19: ApricaS | N19: Com. | O19: Lizzola | P19: Chiesa | Q19: Chiesa | R19: Comb. | S19: Temu' | T19: TonaleG | U19: TonaleS. | V19: Temu'SG | W19: Comb. | X19: Bonus | Y19: Totale | Z19: Class.
B20: dal 1949 al 1953
B21: CARRARA GRAZIELLA | C21: 1950 | D21: S.C.La Recastello | E21: 100 | F21: 100 | G21: 100 | H21: 100 | I21: 100 | J21: 100 | K21: 100 | L21: 100 | M21: 100 | N21: 100 | O21: 100 | P21: 100 | Q21: 100 | R21: 100 | S21: 100 | T21: 100 | U21: 100 | V21: 100 | W21: 100 | X21: 60 | Y21: =SUM(E21:X21) -> 1960 | Z21: 1
B22: BONZANI MILENA | C22: 1949 | D22: S.C.Cernobbio | E22: 80 | F22: 80 | G22: 80 | H22: 80 | I22: 80 | J22: 80 | K22: 80 | L22: 80 | M22: 80 | N22: 80 | O22: 80 | P22: 80 | Q22: 80 | R22: 80 | S22: 80 | T22: 80 | U22: 80 | V22: 80 | W22: 80 | X22: 60 | Y22: =SUM(E22:X22) -> 1580 | Z22: 2
B23: GAENI ARTEMIDE | C23: 1950 | D23: S.C.La Recastello | E23: 60 | F23: 60 | G23: 60 | H23: 60 | I23: 60 | J23: 60 | O23: 60 | P23: 60 | Q23: 60 | R23: 60 | S23: 60 | T23: 60 | U23: 60 | V23: 1 | W23: 1 | X23: 30 | Y23: =SUM(E23:X23) -> 812 | Z23: 3
B24: GAMBA JONNE | C24: 1950 | D24: S.C.La Recastello | K24: 60 | L24: 60 | M24: 60 | N24: 60 | O24: 50 | P24: 50 | Q24: 50 | R24: 50 | S24: 50 | T24: 50 | U24: 50 | V24: 60 | W24: 60 | X24: 30 | Y24: =SUM(E24:X24) -> 740 | Z24: 4
B26: FEMMINILE DAME C3 | C26: Anno | D26: Società | E26: Temù | F26: S.Cat.SG | G26: S.Cat.G. | H26: S.Cat.S | I26: Comb. | J26: Spiazzi | K26: ApricaG | L26: ApricaG | M26: ApricaS | N26: Comb. | O26: Lizzola | P26: Chiesa | Q26: Chiesa | R26: Comb. | S26: Temu' | T26: TonaleG | U26: TonaleS. | V26: Temu'SG | W26: Comb. | X26: Bonus | Y26: Totale | Z26: Class.
B27: dal 1954 al 1963
B28: FUMAGALLI P.ANGELA | C28: 1963 | D28: S.C.La Recastello | E28: 100 | F28: 100 | G28: 100 | H28: 100 | I28: 100 | K28: 100 | L28: 100 | M28: 100 | N28: 100 | P28: 100 | Q28: 100 | R28: 100 | S28: 100 | T28: 100 | U28: 100 | V28: 100 | W28: 100 | X28: 30 | Y28: =SUM(E28:X28) -> 1730 | Z28: 1
B29: MATTARELLI BRUNELLA | C29: 1957 | D29: S.C.Ski Mountain | E29: 45 | F29: 60 | G29: 60 | H29: 80 | I29: 60 | J29: 80 | K29: 60 | L29: 60 | M29: 60 | N29: 60 | O29: 100 | P29: 60 | Q29: 60 | R29: 60 | S29: 60 | T29: 60 | U29: 60 | V29: 80 | W29: 80 | X29: 60 | Y29: 1305 | Z29: 2
B30: BELOTTI P.ANGELA | C30: 1956 | D30: S.C.La Recastello | E30: 60 | F30: 80 | G30: 50 | H30: 60 | I30: 50 | J30: 60 | K30: 50 | L30: 50 | M30: 80 | N30: 80 | O30: 80 | P30: 50 | Q30: 50 | R30: 50 | S30: 36 | T30: 50 | U30: 50 | V30: 50 | W30: 60 | X30: 60 | Y30: 1156 | Z30: 3
B31: DE BATTISTI LORENA | C31: 1963 | D31: S.C.Cernobbio | E31: 80 | G31: 80 | H31: 50 | I31: 80 | J31: 100 | L31: 80 | M31: 50 | N31: 50 | P31: 80 | Q31: 80 | R31: 80 | S31: 80 | T31: 80 | U31: 80 | X31: 30 | Y31: 1080 | Z31: 4
B32: CAPPELLA ANNA | C32: 1955 | D32: S.C.La Recastello | E32: 40 | K32: 40 | L32: 45 | M32: 45 | N32: 45 | P32: 36 | Q32: 36 | R32: 36 | S32: 32 | T32: 32 | U32: 32 | V32: 40 | W32: 40 | X32: 30 | Y32: 529 | Z32: 5
B33: CORDANI ELENA | C33: 1955 | D33: S.C.La Recastello | O33: 60 | P33: 40 | Q33: 40 | R33: 40 | S33: 40 | T33: 40 | U33: 40 | V33: 36 | W33: 45 | X33: 10 | Y33: 391 | Z33: 6
B34: COMINELLI LIVIA | C34: 1958 | D34: S.C.La Recastello | E34: 50 | J34: 50 | K34: 45 | O34: 50 | S34: 45 | T34: 45 | U34: 45 | V34: 1 | W34: 1 | X34: 10 | Y34: 342 | Z34: 7
B35: ZUGNONI DANIELA | C35: 1955 | D35: S.C.Cernobbio | K35: 80 | P35: 45 | Q35: 45 | R35: 45 | S35: 50 | V35: 60 | X35: 10 | Y35: 335 | Z35: 8
B36: MERELLI MARIA LUISA | C36: 1958 | D36: S.C.La Recastello | J36: 40 | O36: 45 | T36: 36 | U36: 36 | V36: 45 | W36: 50 | X36: 10 | Y36: 262 | Z36: 9
B37: DONINI DANIELA | C37: 1962 | D37: S.C.La Recastello | J37: 45 | Y37: 45 | Z37: 10
B39: FEMMINILE DAME C2 | C39: Anno | D39: Società | E39: Temù | F39: S.Cat.SG | G39: S.Cat.G. | H39: S.Cat.S | I39: Comb. | J39: Spiazzi | K39: ApricaG | L39: ApricaG | M39: ApricaS | N39: Comb. | O39: Lizzola | P39: Chiesa | Q39: Chiesa | R39: Comb. | S39: Temu' | T39: TonaleG | U39: TonaleS. | V39: Temu'SG | W39: Comb. | X39: Bonus | Y39: Totale | Z39: Class.
B40: dal 1964 al 1973
B41: BRIVIO ORIETTA | C41: 1967 | D41: S.C.Ski Mountain | K41: 100 | L41: 100 | M41: 100 | N41: 100 | O41: 100 | P41: 60 | Q41: 60 | R41: 60 | S41: 100 | X41: 10 | Y41: =SUM(E41:X41) -> 790 | Z41: 1
B42: DONINI BRUNA | C42: 1965 | D42: S.C.La Recastello | J42: 60 | K42: 80 | L42: 80 | M42: 80 | N42: 80 | P42: 50 | Q42: 50 | R42: 50 | T42: 50 | U42: 50 | V42: 60 | W42: 80 | X42: 10 | Y42: 780 | Z42: 1
B43: PERROTTA CARMEN | C43: 1967 | D43: S.C.Cernobbio | F43: 80 | G43: 100 | H43: 80 | I43: 100 | O43: 60 | P43: 45 | Q43: 45 | R43: 45 | T43: 45 | U43: 45 | X43: 10 | Y43: 655 | Z43: 3
B44: MERELLI DELIA | C44: 1964 | D44: S.C.La Recastello | J44: 80 | O44: 80 | T44: 80 | U44: 60 | V44: 80 | W44: 100 | X44: 10 | Y44: 490 | Z44: 4
B45: GIANESINI GRAZIA | C45: 1970 | D45: S.C.Cernobbio | P45: 80 | Q45: 80 | R45: 80 | V45: 100 | Y45: 340 | Z45: 5
B46: GAMBA ROBERTA | C46: 1971 | D46: S.C.Cernobbio | E46: 100 | F46: 100 | G46: 1 | H46: 100 | Y46: 301 | Z46: 6
B47: COLOMBO MELISSA | C47: 1967 | D47: S.C.Ski Mountain | P47: 100 | Q47: 100 | R47: 100 | Y47: 300 | Z47: 7
B48: CASSINA ANTONIETTA | C48: 1966 | D48: S.C.Cernobbio | T48: 100 | U48: 100 | Y48: 200 | Z48: 8
B49: CASSINA ANNA | C49: 1969 | D49: S.C.Cernobbio | T49: 60 | U49: 80 | Y49: 140 | Z49: 9
B50: VOLPATO CLAUDIA | C50: 1964 | D50: S.C.Ski Mountain | J50: 100 | Y50: 100 | Z50: 10
B52: FEMMINILE DAME C1 | C52: Anno | D52: Società | E52: Temù | F52: S.Cat.SG | G52: S.Cat.G. | H52: S.Cat.S | I52: Comb. | J52: Spiazzi | K52: ApricaG | L52: ApricaG | M52: ApricaS | N52: Comb. | O52: Lizzola | P52: Chiesa | Q52: Chiesa | R52: Comb. | S52: Temu' | T52: TonaleG | U52: TonaleS. | V52: Temu'SG | W52: Comb. | X52: Bonus | Y52: Totale | Z52: Class.
B53: dal 1974 al 1983
B56: SUPER 85 | C56: Anno | D56: Società | E56: Temù | F56: S.Cat.SG | G56: S.Cat.G. | H56: S.Cat.S | I56: Comb. | J56: Spiazzi | K56: ApricaG | L56: ApricaG | M56: ApricaS | N56: Comb. | O56: Lizzola | P56: Chiesa | Q56: Chiesa | R56: Comb- | S56: Temu' | T56: TonaleG | U56: TonaleS. | V56: Temu'SG | W56: Comb. | X56: Bonus | Y56: Totale | Z56: Class.
B57: dal 1933 e precedenti
B58: MORETTI SANDRO | C58: 1933 | D58: S.C.La Recastello | E58: 100 | F58: 1 | G58: 100 | J58: 100 | K58: 100 | L58: 100 | O58: 100 | P58: 100 | Q58: 100 | R58: 100 | S58: 100 | T58: 100 | U58: 100 | V58: 100 | W58: 100 | X58: 30 | Y58: =SUM(E58:X58) -> 1431 | Z58: 1
B59: CANTU' ROBERTO | C59: 1930 | D59: S.C.Cernobbio | G59: 80 | J59: 80 | L59: 80 | O59: 80 | S59: 80 | T59: 80 | U59: 80 | X59: 10 | Y59: =SUM(E59:X59) -> 570 | Z59: 2
B60: MAROLI ENRICO | C60: 1932 | D60: S.C.Cernobbio | P60: 80 | Q60: 80 | R60: 80 | Y60: =SUM(E60:X60) -> 240 | Z60: 3
B62: SUPER 80 | C62: Anno | D62: Società | E62: Temù | F62: S.Cat.SG | G62: S.Cat.G. | H62: S.Cat.S | I62: Comb. | J62: Spiazzi | K62: ApricaG | L62: ApricaG | M62: ApricaS | N62: Comb. | O62: Lizzola | P62: Chiesa | Q62: Chiesa | R62: Comb. | S62: Temu' | T62: TonaleG | U62: TonaleS. | V62: Temu'SG | W62: Comb. | X62: Bonus | Y62: Totale | Z62: Class.
B63: dal 1934 al 1938
B64: TRAINI SANDRO | C64: 1938 | D64: S.C.La Recastello | E64: 100 | F64: 100 | G64: 100 | H64: 100 | I64: 100 | J64: 100 | K64: 100 | L64: 100 | M64: 100 | N64: 100 | O64: 100 | P64: 100 | Q64: 100 | R64: 100 | S64: 100 | T64: 100 | U64: 100 | V64: 100 | W64: 100 | X64: 60 | Y64: =SUM(E64:X64) -> 1960 | Z64: 1
B65: DE BATTISTI G.CARLO | C65: 1935 | D65: S.C.Cernobbio | E65: 80 | F65: 80 | G65: 80 | H65: 45 | I65: 45 | J65: 80 | K65: 80 | L65: 80 | M65: 80 | N65: 80 | O65: 50 | P65: 80 | Q65: 80 | R65: 80 | S65: 80 | T65: 60 | U65: 80 | V65: 80 | W65: 80 | X65: 60 | Y65: 1460 | Z65: 2
B66: CESATI SANDRO | C66: 1936 | D66: S.C.Ski Mountain | E66: 60 | F66: 50 | G66: 60 | H66: 50 | I66: 50 | J66: 60 | K66: 50 | L66: 60 | O66: 60 | P66: 50 | Q66: 50 | R66: 50 | S66: 50 | T66: 80 | U66: 50 | V66: 60 | W66: 60 | X66: 30 | Y66: 980 | Z66: 3
B67: CASSINA ENNIO | C67: 1937 | D67: S.C.Cernobbio | F67: 45 | G67: 45 | H67: 80 | I67: 60 | P67: 60 | Q67: 60 | R67: 60 | S67: 60 | T67: 50 | U67: 60 | X67: 10 | Y67: 590 | Z67: 4
B68: LURASCHI RENZO | C68: 1937 | D68: S.C.Ski Mountain | F68: 60 | G68: 50 | H68: 60 | I68: 80 | K68: 60 | L68: 50 | M68: 60 | N68: 60 | S68: 1 | X68: 10 | Y68: 491 | Z68: 5
B69: MORO MARIO | C69: 1934 | D69: S.C.Ski Mountain | E69: 50 | O69: 80 | Y69: 130 | Z69: 6 | AQ69: ARIZZI CARLO | AR69: ARIZZI CARLO | AS69: ARIZZI CARLO | AT69: ARIZZI CARLO | AU69: ARIZZI CARLO | AV69: ARIZZI CARLO | AW69: ARIZZI CARLO | AX69: ARIZZI CARLO | AY69: ARIZZI CARLO | AZ69: ARIZZI CARLO | BA69: ARIZZI CARLO | BB69: ARIZZI CARLO | BC69: ARIZZI CARLO | BD69: ARIZZI CARLO | BE69: ARIZZI CARLO | BF69: ARIZZI CARLO | BG69: ARIZZI CARLO | BH69: ARIZZI CARLO | BI69: ARIZZI CARLO | BJ69: ARIZZI CARLO | BK69: ARIZZI CARLO | BL69: ARIZZI CARLO | BM69: ARIZZI CARLO | BN69: ARIZZI CARLO | BO69: ARIZZI CARLO | BP69: ARIZZI CARLO | BQ69: ARIZZI CARLO | BR69: ARIZZI CARLO | BS69: ARIZZI CARLO | BT69: ARIZZI CARLO | BU69: ARIZZI CARLO | BV69: ARIZZI CARLO | BW69: ARIZZI CARLO | BX69: ARIZZI CARLO | BY69: ARIZZI CARLO | BZ69: ARIZZI CARLO | CA69: ARIZZI CARLO | CB69: ARIZZI CARLO | CC69: ARIZZI CARLO | CD69: ARIZZI CARLO | CE69: ARIZZI CARLO | CF69: ARIZZI CARLO | CG69: ARIZZI CARLO | CH69: ARIZZI CARLO | CI69: ARIZZI CARLO | CJ69: ARIZZI CARLO | CK69: ARIZZI CARLO | CL69: ARIZZI CARLO | CM69: ARIZZI CARLO | CN69: ARIZZI CARLO | CO69: ARIZZI CARLO | CP69: ARIZZI CARLO | CQ69: ARIZZI CARLO | CR69: ARIZZI CARLO | CS69: ARIZZI CARLO | CT69: ARIZZI CARLO | CU69: ARIZZI CARLO | CV69: ARIZZI CARLO | CW69: ARIZZI CARLO | CX69: ARIZZI CARLO | CY69: ARIZZI CARLO | CZ69: ARIZZI CARLO | DA69: ARIZZI CARLO | DB69: ARIZZI CARLO | DC69: ARIZZI CARLO | DD69: ARIZZI CARLO | DE69: ARIZZI CARLO | DF69: ARIZZI CARLO | DG69: ARIZZI CARLO | DH69: ARIZZI CARLO | DI69: ARIZZI CARLO | DJ69: ARIZZI CARLO | DK69: ARIZZI CARLO | DL69: ARIZZI CARLO | DM69: ARIZZI CARLO | DN69: ARIZZI CARLO | DO69: ARIZZI CARLO | DP69: ARIZZI CARLO | DQ69: ARIZZI CARLO | DR69: ARIZZI CARLO | DS69: ARIZZI CARLO | DT69: ARIZZI CARLO | DU69: ARIZZI CARLO | DV69: ARIZZI CARLO | DW69: ARIZZI CARLO | DX69: ARIZZI CARLO | DY69: ARIZZI CARLO | DZ69: ARIZZI CARLO | EA69: ARIZZI CARLO | EB69: ARIZZI CARLO | EC69: ARIZZI CARLO | ED69: ARIZZI CARLO | EE69: ARIZZI CARLO | EF69: ARIZZI CARLO | EG69: ARIZZI CARLO | EH69: ARIZZI CARLO | EI69: ARIZZI CARLO | EJ69: ARIZZI CARLO | EK69: ARIZZI CARLO | EL69: ARIZZI CARLO | EM69: ARIZZI CARLO | EN69: ARIZZI CARLO | EO69: ARIZZI CARLO | EP69: ARIZZI CARLO | EQ69: ARIZZI CARLO | ER69: ARIZZI CARLO | ES69: ARIZZI CARLO | ET69: ARIZZI CARLO | EU69: ARIZZI CARLO | EV69: ARIZZI CARLO | EW69: ARIZZI CARLO | EX69: ARIZZI CARLO | EY69: ARIZZI CARLO | EZ69: ARIZZI CARLO | FA69: ARIZZI CARLO | FB69: ARIZZI CARLO | FC69: ARIZZI CARLO | FD69: ARIZZI CARLO | FE69: ARIZZI CARLO | FF69: ARIZZI CARLO | FG69: ARIZZI CARLO | FH69: ARIZZI CARLO | FI69: ARIZZI CARLO | FJ69: ARIZZI CARLO | FK69: ARIZZI CARLO | FL69: ARIZZI CARLO | FM69: ARIZZI CARLO | FN69: ARIZZI CARLO | FO69: ARIZZI CARLO | FP69: ARIZZI CARLO | FQ69: ARIZZI CARLO | FR69: ARIZZI CARLO | FS69: ARIZZI CARLO | FT69: ARIZZI CARLO | FU69: ARIZZI CARLO | FV69: ARIZZI CARLO | FW69: ARIZZI CARLO | FX69: ARIZZI CARLO | FY69: ARIZZI CARLO | FZ69: ARIZZI CARLO | GA69: ARIZZI CARLO | GB69: ARIZZI CARLO | GC69: ARIZZI CARLO | GD69: ARIZZI CARLO | GE69: ARIZZI CARLO | GF69: ARIZZI CARLO | GG69: ARIZZI CARLO | GH69: ARIZZI CARLO | GI69: ARIZZI CARLO | GJ69: ARIZZI CARLO | GK69: ARIZZI CARLO | GL69: ARIZZI CARLO | GM69: ARIZZI CARLO | GN69: ARIZZI CARLO | GO69: ARIZZI CARLO | GP69: ARIZZI CARLO | GQ69: ARIZZI CARLO | GR69: ARIZZI CARLO | GS69: ARIZZI CARLO | GT69: ARIZZI CARLO | GU69: ARIZZI CARLO | GV69: ARIZZI CARLO | GW69: ARIZZI CARLO | GX69: ARIZZI CARLO | GY69: ARIZZI CARLO | GZ69: ARIZZI CARLO | HA69: ARIZZI CARLO | HB69: ARIZZI CARLO | HC69: ARIZZI CARLO | HD69: ARIZZI CARLO | HE69: ARIZZI CARLO | HF69: ARIZZI CARLO | HG69: ARIZZI CARLO | HH69: ARIZZI CARLO | HI69: ARIZZI CARLO | HJ69: ARIZZI CARLO | HK69: ARIZZI CARLO | HL69: ARIZZI CARLO | HM69: ARIZZI CARLO | HN69: ARIZZI CARLO | HO69: ARIZZI CARLO | HP69: ARIZZI CARLO | HQ69: ARIZZI CARLO | HR69: ARIZZI CARLO | HS69: ARIZZI CARLO | HT69: ARIZZI CARLO | HU69: ARIZZI CARLO | HV69: ARIZZI CARLO | HW69: ARIZZI CARLO | HX69: ARIZZI CARLO | HY69: ARIZZI CARLO | HZ69: ARIZZI CARLO | IA69: ARIZZI CARLO | IB69: ARIZZI CARLO | IC69: ARIZZI CARLO | ID69: ARIZZI CARLO | IE69: ARIZZI CARLO | IF69: ARIZZI CARLO | IG69: ARIZZI CARLO | IH69: ARIZZI CARLO | II69: ARIZZI CARLO | IJ69: ARIZZI CARLO | IK69: ARIZZI CARLO | IL69: ARIZZI CARLO | IM69: ARIZZI CARLO | IN69: ARIZZI CARLO | IO69: ARIZZI CARLO | IP69: ARIZZI CARLO | IQ69: ARIZZI CARLO | IR69: ARIZZI CARLO | IS69: ARIZZI CARLO | IT69: ARIZZI CARLO | IU69: ARIZZI CARLO | IV69: ARIZZI CARLO
B71: SUPER 75 | C71: Anno | D71: Società | E71: Temù | F71: S.Cat.SG | G71: S.Cat.G. | H71: S.Cat.S | I71: Comb. | J71: Spiazzi | K71: ApricaG | L71: ApricaG | M71: ApricaS | N71: Comb. | O71: Lizzola | P71: Chiesa | Q71: Chiesa | R71: Comb. | S71: Temu' | T71: TonaleG | U71: TonaleS. | V71: Temu'SG | W71: Comb. | X71: Bonus | Y71: Totale | Z71: Class.
B72: dal 1939 al 1943
B73: CATTANEO ACHILLE | C73: 1943 | D73: S.C.La Recastello | E73: 1 | F73: 100 | G73: 80 | H73: 80 | I73: 80 | K73: 1 | L73: 80 | M73: 80 | N73: 80 | P73: 40 | Q73: 100 | R73: 60 | S73: 80 | T73: 100 | U73: 100 | V73: 100 | W73: 100 | X73: 30 | Y73: =SUM(E73:X73) -> 1292 | Z73: 1
B74: PELIZZARI GIANGIACOMO | C74: 1943 | D74: S.C.Cernobbio | E74: 50 | F74: 50 | G74: 40 | H74: 60 | I74: 45 | J74: 80 | K74: 60 | L74: 45 | M74: 60 | N74: 60 | O74: 100 | P74: 80 | Q74: 80 | R74: 100 | S74: 60 | T74: 80 | U74: 50 | V74: 60 | W74: 60 | X74: 60 | Y74: 1280 | Z74: 2
B75: VALLE' G.ANTONIO | C75: 1939 | D75: S.C.Ski Mountain | E75: 60 | F75: 60 | G75: 60 | H75: 45 | I75: 60 | J75: 40 | K75: 80 | L75: 60 | M75: 50 | N75: 50 | O75: 80 | P75: 60 | Q75: 60 | R75: 80 | S75: 50 | T75: 60 | U75: 60 | V75: 80 | W75: 80 | X75: 60 | Y75: 1235 | Z75: 3
B76: BAVO NATALINO | C76: 1943 | D76: S.C.Cernobbio | E76: 100 | F76: 80 | G76: 100 | H76: 100 | I76: 100 | L76: 100 | M76: 100 | N76: 100 | P76: 100 | Q76: 1 | R76: 1 | S76: 100 | X76: 10 | Y76: 992 | Z76: 4
B77: ARIZZI CARLO | C77: 1943 | D77: S.C.Ski Mountain | E77: 45 | F77: 45 | G77: 45 | H77: 36 | I77: 40 | J77: 45 | K77: 50 | L77: 40 | M77: 45 | N77: 40 | O77: 60 | P77: 50 | Q77: 1 | R77: 1 | S77: 45 | T77: 50 | U77: 45 | V77: 50 | W77: 50 | X77: 60 | Y77: 843 | Z77: 5
B78: SPLUGA ENZO | C78: 1942 | D78: S.C.La Recastello | E78: 40 | F78: 40 | G78: 36 | H78: 40 | I78: 32 | J78: 60 | K78: 45 | L78: 36 | M78: 40 | N78: 36 | O78: 50 | S78: 40 | T78: 45 | U78: 40 | V78: 45 | W78: 45 | X78: 30 | Y78: 700 | Z78: 6
B79: GILARDONI FRANCESCO | C79: 1940 | D79: S.C.Cernobbio | E79: 32 | F79: 29 | G79: 29 | H79: 32 | I79: 29 | O79: 40 | P79: 36 | Q79: 45 | R79: 45 | S79: 36 | T79: 36 | U79: 36 | V79: 40 | W79: 40 | X79: 30 | Y79: 535 | Z79: 7
B80: ORSI ALESSANDRO | C80: 1939 | D80: S.C.La Recastello | E80: 80 | F80: 32 | G80: 50 | H80: 50 | I80: 50 | J80: 100 | K80: 100 | L80: 50 | M80: 1 | N80: 1 | X80: 10 | Y80: 524 | Z80: 8
B81: GATTI FRANCO | C81: 1943 | D81: S.C.Ski Mountain | E81: 36 | F81: 36 | G81: 32 | J81: 50 | K81: 40 | L81: 32 | O81: 45 | P81: 45 | Q81: 50 | R81: 50 | X81: 10 | Y81: 426 | Z81: 9
B82: VENEZIANI GIUSEPPE | C82: 1940 | D82: S.C.La Recastello | T82: 40 | U82: 80 | Y82: 120 | Z82: 10
B84: SUPER 70 | C84: Anno | D84: Società | E84: Temù | F84: S.Cat.SG | G84: S.Cat.G. | H84: S.Cat.S | I84: Comb. | J84: Spiazzi | K84: ApricaG | L84: ApricaG | M84: ApricaS | N84: Comb. | O84: Lizzola | P84: Chiesa | Q84: Chiesa | R84: Comb. | S84: Temu' | T84: TonaleG | U84: TonaleS. | V84: Temu'SG | W84: Comb. | X84: Bonus | Y84: Totale | Z84: Class.
B85: dal 1944 al 1948
B86: BAVO GIUSEPPE | C86: 1946 | D86: S.C.Cernobbio | E86: 100 | F86: 100 | G86: 100 | H86: 100 | I86: 100 | L86: 100 | M86: 100 | N86: 100 | P86: 100 | Q86: 100 | R86: 100 | T86: 100 | U86: 100 | V86: 100 | W86: 100 | X86: 30 | Y86: =SUM(E86:X86) -> 1530 | Z86: 1
B87: FERRI GIUSEPPE | C87: 1944 | D87: S.C.La Recastello | E87: 40 | F87: 50 | G87: 50 | H87: 50 | I87: 50 | J87: 60 | K87: 1 | L87: 80 | M87: 1 | N87: 1 | O87: 80 | P87: 60 | Q87: 80 | R87: 60 | S87: 80 | T87: 80 | U87: 60 | V87: 80 | W87: 80 | X87: 60 | Y87: 1103 | Z87: 2
B88: LOCATELLI EFREM | C88: 1948 | D88: G.S.A. Marinelli | E88: 32 | F88: 1 | G88: 40 | H88: 40 | I88: 40 | J88: 50 | K88: 80 | L88: 50 | M88: 60 | N88: 60 | O88: 32 | P88: 32 | Q88: 36 | R88: 36 | S88: 40 | T88: 50 | U88: 50 | V88: 40 | W88: 50 | X88: 60 | Y88: 879 | Z88: 3
B89: NOVELLI NANDO | C89: 1947 | D89: S.C.La Recastello | E89: 50 | F89: 36 | G89: 36 | H89: 1 | I89: 1 | J89: 80 | K89: 100 | L89: 45 | M89: 26 | N89: 26 | O89: 50 | P89: 45 | Q89: 45 | R89: 45 | S89: 60 | T89: 36 | U89: 36 | V89: 45 | W89: 45 | X89: 60 | Y89: 868 | Z89: 4
B90: GUSMINI RENATO | C90: 1947 | D90: S.C.La Recastello | E90: 80 | J90: 100 | O90: 100 | P90: 50 | Q90: 50 | R90: 50 | S90: 100 | T90: 60 | U90: 80 | V90: 50 | W90: 60 | X90: 10 | Y90: 790 | Z90: 5
B91: GARBELLINI LINO | C91: 1947 | D91: S.C.Cernobbio | E91: 60 | F91: 80 | G91: 80 | H91: 45 | I91: 60 | O91: 60 | P91: 80 | Q91: 60 | R91: 80 | S91: 50 | V91: 60 | X91: 10 | Y91: 725 | Z91: 6
B92: GALBUSERA DIEGO | C92: 1945 | D92: S.C.Cernobbio | E92: 45 | F92: 45 | G92: 45 | H92: 60 | I92: 45 | L92: 60 | M92: 80 | N92: 80 | O92: 45 | P92: 40 | Q92: 40 | R92: 40 | X92: 10 | Y92: 635 | Z92: 7
B93: GHILARDI ANGELO | C93: 1947 | D93: G.S.A.Marinelli | E93: 24 | F93: 29 | G93: 24 | H93: 32 | I93: 36 | J93: 36 | K93: 50 | L93: 32 | M93: 50 | N93: 50 | O93: 29 | S93: 29 | T93: 29 | U93: 29 | V93: 29 | W93: 32 | X93: 30 | Y93: 570 | Z93: 8
B94: FERRARI DARIO | C94: 1947 | D94: S.C.La Recastello | E94: 18 | F94: 18 | G94: 15 | H94: 18 | I94: 20 | J94: 29 | K94: 29 | L94: 20 | M94: 32 | N94: 40 | O94: 24 | P94: 26 | Q94: 26 | R94: 26 | S94: 24 | T94: 24 | U94: 24 | V94: 22 | W94: 26 | X94: 60 | Y94: 521 | Z94: 9
B95: MELZI CARLO | C95: 1945 | D95: S.C.La Recastello | E95: 36 | F95: 24 | G95: 26 | K95: 36 | L95: 29 | P95: 24 | Q95: 29 | R95: 29 | S95: 45 | T95: 40 | U95: 45 | V95: 32 | W95: 40 | X95: 30 | Y95: 465 | Z95: 10
B96: DOTTI SERGIO | C96: 1946 | D96: S.C.Cernobbio | E96: 12 | F96: 20 | G96: 14 | H96: 20 | I96: 24 | J96: 24 | K96: 24 | L96: 16 | M96: 36 | N96: 32 | O96: 18 | P96: 18 | Q96: 18 | R96: 18 | S96: 18 | T96: 18 | U96: 20 | V96: 18 | W96: 24 | X96: 60 | Y96: 452 | Z96: 11
B97: AGAZZI LUCIO | C97: 1947 | D97: G.S.A.Marinelli | E97: 29 | F97: 32 | G97: 29 | J97: 40 | K97: 40 | L97: 36 | O97: 36 | S97: 36 | T97: 32 | U97: 32 | V97: 36 | W97: 36 | X97: 30 | Y97: 444 | Z97: 12
B98: MONTI PRIMO | C98: 1947 | D98: S.C.Cernobbio | E98: 13 | F98: 15 | G98: 13 | H98: 22 | I98: 22 | J98: 22 | K98: 22 | L98: 15 | M98: 29 | N98: 29 | O98: 22 | P98: 16 | Q98: 15 | R98: 16 | S98: 20 | T98: 22 | U98: 22 | V98: 16 | W98: 22 | X98: 60 | Y98: 433 | Z98: 13
B99: BOMBARDIERI ENZO | C99: 1945 | D99: S.C.Cernobbio | G99: 20 | H99: 36 | I99: 32 | K99: 45 | L99: 26 | M99: 45 | N99: 45 | P99: 29 | Q99: 32 | R99: 32 | S99: 26 | V99: 26 | X99: 10 | Y99: 404 | Z99: 14
B100: BELOTTI NELLO | C100: 1946 | D100: S.C.La Recastello | E100: 16 | F100: 22 | G100: 22 | J100: 32 | K100: 32 | L100: 24 | O100: 26 | S100: 22 | T100: 26 | U100: 26 | V100: 20 | W100: 29 | X100: 30 | Y100: 327 | Z100: 15
B101: FIENGO PIETRO | C101: 1946 | D101: S.C.La Recastello | E101: 26 | F101: 40 | G101: 32 | J101: 45 | K101: 60 | L101: 40 | S101: 32 | X101: 10 | Y101: 285 | Z101: 16
B102: BORIERO GIANNI | C102: 1946 | D102: S.C.Cernobbio | E102: 14 | F102: 26 | G102: 18 | H102: 29 | I102: 29 | K102: 26 | L102: 22 | P102: 20 | Q102: 24 | R102: 20 | S102: 1 | V102: 24 | X102: 30 | Y102: 283 | Z102: 17
B104: SUPER 70 | C104: Anno | D104: Società | E104: Temù | F104: S.Cat.SG | G104: S.Cat.G. | H104: S.Cat.S | I104: Comb. | J104: Spiazzi | K104: ApricaG | L104: ApricaG | M104: ApricaS | N104: Comb. | O104: Lizzola | P104: Chiesa | Q104: Chiesa | R104: Comb. | S104: Temu' | T104: TonaleG | U104: TonaleS. | V104: Temu'SG | W104: Comb. | X104: Bonus | Y104: Totale | Z104: Class.
B105: dal 1944 al 1948
B106: TASCHINI CARLO | C106: 1946 | D106: S.C.La Recastello | F106: 60 | G106: 60 | H106: 80 | I106: 80 | Y106: 280 | Z106: 18
B107: CASSINA EZIO | C107: 1947 | D107: S.C.Cernobbio | F107: 16 | G107: 12 | H107: 26 | I107: 18 | J107: 26 | O107: 20 | T107: 20 | U107: 18 | V107: 15 | W107: 20 | X107: 10 | Y107: 201 | Z107: 19
B108: RUFFINONI ALDO | C108: 1945 | D108: S.C.La Recastello | O108: 40 | P108: 36 | Q108: 16 | R108: 22 | Y108: 114 | Z108: 20
B109: PASQUINA GIACOMO | C109: 1946 | D109: S.C.Cernobbio | E109: 20 | L109: 18 | P109: 22 | Q109: 22 | R109: 24 | Y109: 106 | Z109: 21
B110: SACCHI GINO | C110: 1947 | D110: S.C.Cernobbio | L110: 14 | M110: 40 | N110: 36 | O110: 16 | Y110: 106 | Z110: 22
B111: FRACCHIA MAURIZIO | C111: 1948 | D111: S.C.Cernobbio | E111: 22 | G111: 16 | H111: 24 | I111: 26 | Y111: 88 | Z111: 23
B112: VALSECCHI G.FRANCO | C112: 1945 | D112: S.C.La Recastello | P112: 1 | Q112: 20 | R112: 1 | Y112: 22 | Z112: 24
B113: ZATTI AGOSTINO 1946 | C113: 1946 | D113: S.C.La Recastello | T113: 45 | U113: 40 | Y113: =SUM(E113:X113) -> 85 | Z113: 25
B114: MODESTI ATTILIO | C114: 1946 | D114: S.C.Ski Mountain | E114: 15 | Y114: 15 | Z114: 26
B116: SUPER 65 | C116: Anno | D116: Società | E116: Temù | F116: S.Cat.SG | G116: S.Cat.G. | H116: S.Cat.S | I116: Comb. | J116: Spiazzi | K116: ApricaG | L116: ApricaG | M116: ApricaS | N116: Comb. | O116: Lizzola | P116: Chiesa | Q116: Chiesa | R116: Comb, | S116: Temu' | T116: TonaleG | U116: TonaleS. | V116: Temu'SG | W116: Comb. | X116: Bonus | Y116: Totale | Z116: Class.
B117: dal 1949 al 1953
B118: CURTONI GIORGIO | C118: 1951 | D118: S.C.Cernobbio | E118: 100 | F118: 100 | G118: 100 | H118: 100 | I118: 100 | K118: 100 | L118: 100 | M118: 100 | N118: 100 | P118: 100 | Q118: 80 | R118: 100 | S118: 100 | T118: 100 | U118: 100 | V118: 100 | W118: 100 | X118: 30 | Y118: =SUM(E118:X118) -> 1710 | Z118: 1
B119: ZUGNONI LIVIO | C119: 1951 | D119: S.C.Cernobbio | E119: 80 | F119: 80 | G119: 80 | H119: 1 | K119: 80 | L119: 80 | M119: 80 | N119: 80 | P119: 80 | Q119: 100 | R119: 80 | S119: 80 | T119: 60 | U119: 50 | V119: 80 | W119: 80 | X119: 30 | Y119: 1201 | Z119: 2
B120: GAMBA BRUNO | C120: 1953 | D120: S.C.La Recastello | E120: 60 | F120: 45 | G120: 60 | H120: 60 | I120: 80 | J120: 100 | K120: 1 | L120: 45 | M120: 40 | N120: 40 | O120: 80 | P120: 45 | Q120: 45 | R120: 45 | S120: 60 | T120: 45 | U120: 60 | V120: 40 | W120: 50 | X120: 60 | Y120: 1061 | Z120: 3
B121: ROSSI MARCELLO | C121: 1951 | D121: S.C.Ski Mountain | E121: 45 | F121: 60 | G121: 45 | H121: 45 | I121: 45 | J121: 50 | K121: 45 | L121: 36 | M121: 36 | N121: 36 | O121: 60 | P121: 40 | Q121: 45 | R121: 40 | S121: 50 | T121: 50 | U121: 45 | V121: 60 | W121: 60 | X121: 60 | Y121: 953 | Z121: 4
B122: BERERA LINO | C122: 1949 | D122: S.C.La Recastello | E122: 40 | F122: 32 | G122: 40 | H122: 80 | I122: 60 | J122: 40 | K122: 36 | L122: 40 | M122: 50 | N122: 45 | O122: 50 | P122: 50 | Q122: 50 | R122: 50 | S122: 45 | T122: 40 | U122: 40 | V122: 45 | W122: 45 | X122: 60 | Y122: 938 | Z122: 5
B123: FERRI CARLO | C123: 1949 | D123: S.C.Cernobbio | E123: 50 | F123: 50 | G123: 50 | H123: 50 | I123: 50 | J123: 45 | K123: 60 | L123: 60 | M123: 60 | N123: 60 | O123: 100 | P123: 60 | Q123: 60 | R123: 60 | X123: 30 | Y123: 845 | Z123: 6
B124: ZERBONI FAUSTO | C124: 1953 | D124: S.C.Cernobbio | E124: 36 | F124: 36 | G124: 32 | H124: 36 | I124: 40 | K124: 32 | L124: 29 | M124: 32 | N124: 32 | O124: 45 | P124: 36 | Q124: 36 | R124: 36 | S124: 40 | V124: 50 | X124: 30 | Y124: 578 | Z124: 7
B125: MAGNI GIGI | C125: 1950 | D125: S.C.La Recastello | E125: 29 | F125: 29 | G125: 26 | H125: 40 | I125: 36 | J125: 29 | K125: 20 | L125: 11 | M125: 24 | N125: 18 | O125: 36 | P125: 22 | Q125: 22 | R125: 22 | S125: 29 | T125: 22 | U125: 26 | V125: 22 | W125: 29 | X125: 60 | Y125: 552 | Z125: 8
B126: BARONCHELLI G.MARIA | C126: 1952 | D126: S.C.La Recastello | E126: 32 | F126: 26 | G126: 29 | J126: 36 | K126: 29 | L126: 24 | P126: 32 | Q126: 32 | R126: 32 | S126: 36 | T126: 32 | U126: 29 | V126: 36 | W126: 40 | X126: 30 | Y126: 475 | Z126: 9
B127: AMBROSIONI G.BATTISTA | C127: 1952 | D127: S.C.Ski Mountain | E127: 16 | F127: 22 | G127: 24 | H127: 32 | I127: 32 | J127: 18 | K127: 24 | L127: 22 | M127: 29 | N127: 29 | O127: 32 | S127: 22 | T127: 24 | U127: 24 | V127: 24 | W127: 32 | X127: 30 | Y127: 436 | Z127: 10
B128: CARRARA G.BATTISTA | C128: 1950 | D128: G.S.A. Marinelli | E128: 14 | F128: 16 | G128: 16 | H128: 24 | I128: 24 | J128: 20 | K128: 13 | L128: 16 | M128: 20 | N128: 22 | O128: 14 | P128: 20 | Q128: 20 | R128: 20 | S128: 15 | T128: 20 | U128: 20 | V128: 16 | W128: 26 | X128: 60 | Y128: 416 | Z128: 11
B129: TESTA CLAUDIO | C129: 1949 | D129: S.C.La Recastello | E129: 13 | F129: 14 | G129: 14 | H129: 18 | I129: 18 | J129: 16 | K129: 12 | L129: 12 | M129: 18 | N129: 20 | O129: 15 | P129: 14 | Q129: 14 | R129: 14 | S129: 16 | T129: 18 | U129: 18 | V129: 18 | W129: 24 | X129: 60 | Y129: 366 | Z129: 12
B130: MORETTI MARCO | C130: 1949 | D130: S.C.Ski Mountain | F130: 40 | G130: 36 | J130: 80 | K130: 50 | L130: 50 | M130: 45 | N130: 50 | X130: 10 | Y130: 361 | Z130: 13
B131: MODANESI ROMEO | C131: 1951 | D131: S.C.Ski Mountain | E131: 24 | J131: 32 | K131: 40 | O131: 40 | S131: 32 | T131: 29 | U131: 32 | V131: 26 | W131: 36 | X131: 10 | Y131: 301 | Z131: 14
B132: GOTTI GIORDANO | C132: 1953 | D132: S.C.Cernobbio | E132: 18 | F132: 24 | G132: 18 | H132: 20 | I132: 22 | K132: 18 | L132: 18 | O132: 18 | P132: 26 | Q132: 24 | R132: 24 | S132: 20 | V132: 20 | X132: 30 | Y132: 300 | Z132: 15
B133: CONFALONIERI NORBERTO | C133: 1952 | D133: S.C.Ski Mountain | E133: 20 | F133: 20 | G133: 22 | H133: 29 | I133: 29 | K133: 16 | O133: 26 | P133: 29 | Q133: 29 | R133: 29 | S133: 24 | X133: 10 | Y133: 283 | Z133: 16
B134: BIELLA GIUSEPPE | C134: 1950 | D134: S.C.Ski Mountain | F134: 15 | G134: 15 | H134: 22 | I134: 20 | K134: 14 | L134: 14 | M134: 1 | N134: 1 | O134: 13 | P134: 15 | Q134: 18 | R134: 15 | S134: 14 | T134: 16 | U134: 16 | V134: 1 | W134: 1 | X134: 30 | Y134: 241 | Z134: 17
B135: MARTINI SERGIO | C135: 1950 | D135: S.C.Cernobbio | E135: 15 | F135: 18 | G135: 20 | H135: 26 | I135: 26 | J135: 1 | K135: 15 | L135: 15 | O135: 20 | P135: 16 | Q135: 16 | R135: 16 | X135: 30 | Y135: 234 | Z135: 18
B136: MANZOTTI MARCO | C136: 1952 | D136: S.C.Ski Mountain | E136: 12 | J136: 22 | L136: 13 | M136: 22 | N136: 24 | O136: 16 | P136: 18 | Q136: 15 | R136: 18 | S136: 18 | V136: 29 | X136: 10 | Y136: 217 | Z136: 19
B137: GIUDES SILVANO | C137: 1951 | D137: S.C.Cernobbio | L137: 26 | O137: 22 | P137: 24 | Q137: 26 | R137: 26 | S137: 26 | V137: 32 | X137: 10 | Y137: 192 | Z137: 20
B138: MORESCHI GIOVANNI | C138: 1951 | D138: S.C.La Recastello | J138: 26 | K138: 22 | L138: 20 | M138: 26 | N138: 26 | T138: 26 | U138: 22 | X138: 10 | Y138: 178 | Z138: 21
B139: STEFANI UGO | C139: 1951 | D139: S.C.La Recastello | T139: 80 | U139: 80 | Y139: 160 | Z139: 22
B140: GRASSI GIOVANNI | C140: 1949 | D140: S.C.La Recastello | J140: 60 | K140: 26 | L140: 32 | M140: 16 | N140: 16 | Y140: 150 | Z140: 23
B141: CEMMI FEDERICO | C141: 1951 | D141: S.C.La Recastello | E141: 26 | T141: 36 | U141: 36 | Y141: 98 | Z141: 24
B142: DONATI FANCESCO | C142: 1952 | D142: S.C.Ski Mountain | J142: 24 | T142: 16 | Y142: 40 | Z142: 25
B143: ALBRICI BORTOLO | C143: 1953 | D143: S.C.La Recastello | O143: 29 | Y143: 29 | Z143: 26
B144: CAVAGNA GIOVANNI | C144: 1953 | D144: S.C.La Recastello | O144: 24 | Y144: 24 | Z144: 27
B145: GIUDICI GINO | C145: 1952 | D145: S.C.Cernobbio | E145: 22 | F145: 1 | Y145: 23 | Z145: 28
B147: Super 60 | C147: Anno | D147: Societa' | E147: Temù | F147: S.Cat.SG | G147: S.Cat.G. | H147: S.Cat.S | I147: Comb. | J147: Spiazzi | K147: ApricaG | L147: ApricaG | M147: ApricaS | N147: Comb. | O147: Lizzola | P147: Chiesa | Q147: Chiesa | R147: Comb. | S147: Temu' | T147: TonaleG | U147: TonaleS. | V147: Temu'SG | W147: Comb. | X147: Bonus | Y147: Totale | Z147: Class.
B148: dal 1954 al 1958
B149: CARRARA ADRIANO | C149: 1957 | D149: S.C.La Recastello | E149: 1 | F149: 80 | G149: 80 | H149: 100 | I149: 100 | J149: 100 | K149: 100 | L149: 100 | M149: 100 | N149: 100 | O149: 100 | P149: 80 | Q149: 50 | R149: 60 | S149: 100 | T149: 80 | U149: 100 | V149: 45 | W149: 60 | X149: 60 | Y149: =SUM(E149:X149) -> 1596 | Z149: 1
B150: BERGAMELLI G.PIETRO | C150: 1954 | D150: S.C.Ski Mountain | E150: 80 | F150: 50 | G150: 50 | H150: 40 | I150: 60 | J150: 80 | K150: 60 | L150: 50 | M150: 80 | N150: 60 | O150: 60 | P150: 50 | Q150: 36 | R150: 45 | S150: 80 | T150: 100 | U150: 60 | V150: 50 | W150: 80 | X150: 60 | Y150: 1231 | Z150: 2
B151: GANDOSSI DANILO | C151: 1956 | D151: S.C.La Recastello | E151: 50 | F151: 60 | G151: 40 | H151: 50 | I151: 45 | J151: 60 | K151: 80 | L151: 80 | M151: 50 | N151: 50 | O151: 50 | P151: 45 | Q151: 60 | R151: 50 | S151: 50 | T151: 50 | U151: 50 | V151: 80 | W151: 50 | X151: 60 | Y151: 1110 | Z151: 3
B152: BORDAZZI SERGIO | C152: 1958 | D152: S.C.La Recastello | E152: 32 | F152: 32 | G152: 26 | H152: 45 | I152: 32 | J152: 45 | K152: 36 | L152: 36 | M152: 45 | N152: 36 | O152: 36 | P152: 36 | Q152: 40 | R152: 36 | S152: 29 | T152: 36 | U152: 40 | V152: 32 | W152: 36 | X152: 60 | Y152: 746 | Z152: 4
B153: SABBADINI MARIO | C153: 1955 | D153: S.C.La Recastello | K153: 50 | L153: 60 | M153: 60 | N153: 80 | O153: 80 | S153: 60 | T153: 60 | U153: 80 | V153: 100 | W153: 100 | X153: 10 | Y153: 740 | Z153: 5
B154: BALZI IVANO | C154: 1958 | D154: S.C.La Recastello | E154: 40 | F154: 40 | G154: 36 | H154: 32 | I154: 36 | K154: 45 | L154: 45 | M154: 36 | N154: 40 | P154: 26 | Q154: 32 | R154: 32 | S154: 40 | T154: 45 | U154: 45 | V154: 36 | W154: 40 | X154: 30 | Y154: 676 | Z154: 6
B155: VAINI GUIDO | C155: 1958 | D155: S.C.Ski Mountain | E155: 29 | F155: 29 | G155: 24 | H155: 24 | I155: 26 | J155: 40 | K155: 32 | L155: 29 | M155: 29 | N155: 29 | O155: 40 | P155: 32 | Q155: 26 | R155: 26 | S155: 32 | T155: 40 | U155: 36 | V155: 40 | W155: 45 | X155: 60 | Y155: 668 | Z155: 7
B156: CORBELLA PIERO | C156: 1954 | D156: S.C.La Recastello | E156: 45 | F156: 45 | G156: 45 | H156: 36 | I156: 40 | J156: 50 | K156: 40 | L156: 40 | M156: 40 | N156: 45 | P156: 40 | Q156: 45 | R156: 40 | S156: 45 | X156: 30 | Y156: 626 | Z156: 8
B157: ARRIGONI RUGGERO | C157: 1956 | D157: S.C.La Recastello | E157: 24 | F157: 24 | G157: 16 | H157: 22 | I157: 20 | J157: 1 | K157: 26 | L157: 24 | M157: 26 | N157: 26 | O157: 24 | P157: 20 | Q157: 16 | R157: 20 | S157: 22 | T157: 26 | U157: 24 | V157: 29 | W157: 29 | X157: 60 | Y157: 479 | Z157: 9
B158: SALVADORI FEDERINO | C158: 1955 | D158: S.C.Cernobbio | F158: 22 | G158: 22 | H158: 26 | I158: 24 | K158: 29 | L158: 26 | M158: 32 | N158: 32 | O158: 26 | P158: 22 | Q158: 20 | R158: 22 | S158: 26 | T158: 29 | U158: 29 | V158: 26 | W158: 32 | X158: 30 | Y158: 475 | Z158: 10
B159: LOMBARDI CARMINE | C159: 1955 | D159: S.C.La Recastello | F159: 20 | G159: 18 | H159: 16 | I159: 18 | J159: 36 | K159: 24 | L159: 22 | M159: 24 | N159: 24 | O159: 29 | P159: 18 | Q159: 18 | R159: 18 | S159: 24 | T159: 24 | U159: 26 | V159: 22 | W159: 26 | X159: 30 | Y159: 437 | Z159: 11
B160: GALBUSERA GUIDO | C160: 1958 | D160: S.C.Cernobbio | E160: 60 | P160: 80 | Q160: 80 | R160: 80 | V160: 60 | Y160: 360 | Z160: 12
B161: MAXENTI VINCENZO | C161: 1957 | D161: S.C.Cernobbio | E161: 26 | F161: 15 | G161: 14 | H161: 18 | I161: 15 | K161: 20 | L161: 18 | M161: 22 | N161: 22 | P161: 15 | Q161: 15 | R161: 15 | S161: 20 | T161: 20 | U161: 22 | V161: 24 | W161: 24 | X161: 30 | Y161: 355 | Z161: 13
B162: BALZARETTI ANGELO | C162: 1955 | D162: S.C.Cernobbio | E162: 36 | G162: 32 | H162: 29 | I162: 29 | L162: 32 | O162: 45 | S162: 36 | T162: 32 | U162: 32 | X162: 10 | Y162: 313 | Z162: 14
B163: DONATI ADRIANO | C163: 1958 | D163: S.C.Ski Mountain | P163: 100 | Q163: 100 | R163: 100 | Y163: 300 | Z163: 15
B164: ORIO SERGIO | C164: 1958 | D164: S.C.Ski Mountain | E164: 100 | F164: 100 | G164: 60 | T164: 1 | U164: 1 | X164: 10 | Y164: 272 | Z164: 16
B165: GIORDANO MICHELE | C165: 1955 | D165: S.C.Cernobbio | E165: 22 | F165: 18 | G165: 15 | H165: 15 | I165: 16 | K165: 22 | L165: 20 | O165: 20 | P165: 16 | Q165: 22 | R165: 16 | S165: 18 | V165: 20 | X165: 30 | Y165: 270 | Z165: 17
B166: COMPAGNONI CANDIDO | C166: 1955 | D166: S.C.Cernobbio | G166: 100 | H166: 80 | I166: 80 | Y166: 260 | Z166: 18
B167: PELIZZARI VITTORIO | C167: 1954 | D167: S.C.Cernobbio | F167: 36 | G167: 29 | H167: 60 | I167: 50 | Y167: 175 | Z167: 19
B168: PEROSINO RENATO | C168: 1954 | D168: S.C.La Recastello | E168: 20 | F168: 16 | G168: 13 | J168: 32 | K168: 1 | O168: 18 | S168: 16 | T168: 22 | U168: 1 | X168: 10 | Y168: 149 | Z168: 20
B169: ARLATI FRANCO | C169: 1955 | D169: S.C.Ski Mountain | F169: 26 | G169: 20 | H169: 20 | I169: 22 | Y169: 88 | Z169: 21
B170: MUNARETT0 MAURIZIO | C170: 1955 | D170: S.C.Ski Mountain | P170: 29 | Q170: 29 | R170: 29 | Y170: 87 | Z170: 22
B171: ALVARETA RENZO | C171: 1954 | D171: S.C.Cernobbio | P171: 24 | Q171: 24 | R171: 24 | Y171: 72 | Z171: 23
B172: CASANOVA GIUSEPPE | C172: 1955 | D172: S.C.La Recastello | S172: 15 | T172: 18 | U172: 20 | Y172: 53 | Z172: 24
B173: TENCI FERMO | C173: 1956 | D173: S.C.La Recastello | K173: 1 | O173: 32 | Y173: 33 | Z173: 25
B174: BORRA CLEMENTE | C174: 1956 | D174: S.C.Cernobbio | O174: 22 | Y174: 22 | Z174: 26
B175: GAVARINI LUIGI | C175: 1958 | D175: S.C.Cernobbio | O175: 16 | Y175: 16 | Z175: 27
B176: RUSCONI ANTONIO | C176: 1958 | D176: S.C.Cernobbio | O176: 15 | Y176: 15 | Z176: 28
B177: GIROLA ROSSANO | C177: 1958 | D177: S.C.Cernobbio | S177: 14 | Y177: 14 | Z177: 29
B179: Super 55 | C179: Anno | D179: Società | E179: Temù | F179: S.Cat.SG | G179: S.Cat.G. | H179: S.Cat.S | I179: Comb. | J179: Spiazzi | K179: ApricaG | L179: ApricaG | M179: ApricaS | N179: Comb. | O179: Lizzola | P179: Chiesa | Q179: Chiesa | R179: Comb. | S179: Temu' | T179: TonaleG | U179: TonaleS. | V179: Temu'SG | W179: Comb. | X179: Bonus | Y179: Totale | Z179: Class.
B180: dal 1959 al 1963
B181: FAZZINI AMOS | C181: 1960 | D181: S.C.Cernobbio | E181: 100 | F181: 80 | G181: 100 | K181: 80 | O181: 80 | P181: 100 | Q181: 80 | R181: 100 | S181: 100 | T181: 100 | U181: 80 | V181: 100 | W181: 100 | X181: 30 | Y181: =SUM(E181:X181) -> 1230 | Z181: 1
B182: SALVADORI MARCO | C182: 1963 | D182: S.C.Cernobbio | E182: 50 | F182: 100 | G182: 80 | H182: 40 | I182: 60 | K182: 60 | L182: 80 | M182: 100 | N182: 100 | O182: 50 | P182: 45 | Q182: 40 | R182: 45 | S182: 80 | T182: 60 | U182: 50 | V182: 45 | W182: 60 | X182: 30 | Y182: 1175 | Z182: 2
B183: GALAS MARIANO | C183: 1959 | D183: S.C.Cernobbio | E183: 80 | F183: 60 | G183: 50 | H183: 100 | I183: 100 | K183: 100 | L183: 100 | M183: 1 | N183: 1 | O183: 100 | P183: 80 | Q183: 100 | R183: 80 | T183: 1 | U183: 100 | V183: 80 | W183: 1 | X183: 30 | Y183: 1164 | Z183: 3
B184: MIGLIORATI SERGIO | C184: 1959 | D184: S.C.La Recastello | E184: 60 | F184: 45 | G184: 45 | H184: 80 | I184: 80 | J184: 40 | K184: 29 | L184: 40 | M184: 80 | N184: 50 | O184: 60 | P184: 50 | Q184: 60 | R184: 60 | T184: 80 | U184: 60 | V184: 60 | W184: 80 | X184: 30 | Y184: 1089 | Z184: 4
B185: TOMBINI P.ANGELO | C185: 1960 | D185: S.C.Ski Mountain | E185: 40 | F185: 32 | G185: 36 | H185: 50 | I185: 50 | J185: 100 | K185: 40 | L185: 50 | M185: 50 | N185: 80 | O185: 40 | P185: 32 | Q185: 45 | R185: 40 | S185: 60 | T185: 50 | U185: 45 | V185: 50 | W185: 50 | X185: 60 | Y185: 1000 | Z185: 5
B186: ZUCCHELLI MARCO | C186: 1959 | D186: S.C.La Recastello | E186: 36 | F186: 36 | G186: 26 | H186: 60 | I186: 45 | J186: 60 | K186: 45 | O186: 36 | P186: 40 | Q186: 32 | R186: 36 | S186: 50 | T186: 45 | U186: 40 | V186: 40 | W186: 45 | X186: 30 | Y186: 702 | Z186: 6
B187: STEFANO CARMINI | C187: 1961 | D187: S.C.Ski Mountain | K187: 36 | L187: 45 | M187: 60 | N187: 60 | O187: 32 | S187: 45 | T187: 40 | U187: 36 | X187: 10 | Y187: 364 | Z187: 7
B188: POMONI FAUSTO | C188: 1961 | D188: S.C.Cernobbio | E188: 45 | F188: 40 | G188: 40 | K188: 50 | L188: 60 | P188: 29 | X188: 10 | Y188: 274 | Z188: 8
B189: ACQUISTAPACE ALDO | C189: 1961 | D189: S.C.Cernobbio | L189: 36 | M189: 40 | N189: 45 | P189: 24 | Q189: 24 | R189: 26 | S189: 40 | X189: 10 | Y189: 245 | Z189: 9
B190: COLOMBO STEFANO | C190: 1961 | D190: S.C.Ski Mountain | E190: 1 | J190: 45 | L190: 1 | M190: 1 | P190: 1 | Q190: 26 | R190: 1 | T190: 36 | U190: 32 | V190: 32 | W190: 40 | X190: 10 | Y190: 226 | Z190: 10
B191: CANCLINI DAVIDE | C191: 1963 | D191: S.C.La Recastello | G191: 29 | K191: 32 | L191: 1 | M191: 45 | O191: 24 | P191: 26 | Q191: 29 | R191: 29 | X191: 10 | Y191: 225 | Z191: 11
B192: BANFI LUCA | C192: 1959 | D192: S.C.Ski Mountain | F192: 29 | G192: 24 | H192: 45 | I192: 40 | O192: 26 | Y192: 164 | Z192: 12
B193: SALVETTI ROMEO | C193: 1963 | D193: S.C.Ski Mountain | P193: 60 | Q193: 50 | R193: 50 | Y193: 160 | Z193: 13
B194: TAGLIAFERRO MAURIZIO | C194: 1959 | D194: S.C.Cernobbio | E194: 1 | P194: 36 | Q194: 36 | R194: 32 | V194: 36 | Y194: 141 | Z194: 14
B195: MANGINI BATTISTA | C195: 1961 | D195: S.C.La Recastello | J195: 80 | O195: 45 | Y195: 125 | Z195: 15
B196: COMPAGNONI FIORENZO | C196: 1963 | D196: S.C.Cernobbio | F196: 50 | G196: 60 | Y196: 110 | Z196: 16
B197: CATTANEO FABRIZIO | C197: 1960 | D197: S.C.La Recastello | J197: 50 | O197: 29 | Y197: 79 | Z197: 17
B198: PINI FRANCESCO | C198: 1961 | D198: S.C.Ski Mountain | E198: 32 | Y198: 32 | Z198: 18
B199: POROTTO MARCO | C199: 1962 | D199: S.C.La Recastello | G199: 32 | Y199: 32 | Z199: 19
B200: ROGATE GIUSEPPE | C200: 1960 | D200: S.C.Ski Mountain | L200: 1 | Y200: 1 | Z200: 20
B202: Super 50 | C202: Anno | D202: Società | E202: Temù | F202: S.Cat.SG | G202: S.Cat.G. | H202: S.Cat.S | I202: Comb. | J202: Spiazzi | K202: ApricaG | L202: ApricaG | M202: ApricaS | N202: Com. | O202: Lizzola | P202: Chiesa | Q202: Chiesa | R202: Comb. | S202: Temu' | T202: TonaleG | U202: TonaleS. | V202: Temu'SG | W202: Comb. | X202: Bonus | Y202: Totale | Z202: Class.
B203: dal 1964 al 1969
B204: COLOMBO STEFANO | C204: 1966 | D204: S.C.Ski Mountain | E204: 80 | G204: 100 | H204: 100 | I204: 100 | J204: 100 | L204: 80 | M204: 80 | N204: 80 | O204: 100 | P204: 100 | Q204: 100 | R204: 100 | S204: 100 | T204: 100 | U204: 100 | X204: 30 | Y204: =SUM(E204:X204) -> 1450 | Z204: 1
B205: CANTONI DAVIDE | C205: 1967 | D205: S.C.Cernobbio | F205: 80 | G205: 80 | H205: 80 | I205: 80 | L205: 60 | M205: 60 | N205: 60 | X205: 10 | Y205: 510 | Z205: 2
B206: PLONA MARCO | C206: 1966 | D206: S.C.Cernobbio | F206: 100 | K206: 100 | L206: 100 | M206: 100 | N206: 100 | Y206: 500 | Z206: 3
B207: MULAZZI GIANNI | C207: 1966 | D207: S.C.Ski Mountain | E207: 100 | P207: 80 | Q207: 80 | R207: 80 | Y207: 340 | Z207: 4
B208: MAGGIONI ACHILLE | C208: 1965 | D208: S.C.Ski Mountain | P208: 60 | Q208: 60 | R208: 60 | S208: 80 | Y208: 260 | Z208: 5
B209: FUGAZZA ENNIO | C209: 1966 | D209: S.C.La Recastello | J209: 60 | P209: 45 | Q209: 45 | R209: 45 | Y209: 195 | Z209: 6
B210: GALLI IVANO | C210: 1965 | D210: S.C.Ski Mountain | P210: 50 | Q210: 50 | R210: 50 | Y210: 150 | Z210: 7
B211: MANGINI G.PIETRO | C211: 1964 | D211: S.C.La Recastello | J211: 50 | O211: 80 | Y211: 130 | Z211: 8
B212: MARTINELLI CLAUDIO | C212: 1968 | D212: G.S.A.Marinelli | J212: 80 | Y212: 80 | Z212: 9
B213: ZUGNONI MASSIMO | C213: 1968 | D213: S.C.Cernobbio | E213: 60 | Y213: 60 | Z213: 10
B214: CAMPOLO ANTONINO | C214: 1968 | D214: S.C.Ski Mountain | E214: 50 | Y214: 50 | Z214: 11
B215: ZAPPA LUCA | C215: 1967 | D215: S.C.Ski Mountain | P215: 40 | Q215: 1 | R215: 1 | Y215: 42 | Z215: 12

Sheet Foglio2
